bitfinex-derivatives/quotes_BTCF0:USTF0_20250129
["timestamp","ask_amount","ask_price","bid_price","bid_amount"]
[1738162214498,0.20419023,101750.0,101740.0,0.196648]
[1738162214889,0.20419023,101750.0,101740.0,0.81549783]
[1738162215099,0.23483499,101760.0,101750.0,0.196629]
[1738162215100,0.23350785,101760.0,101750.0,0.196629]
[1738162215302,0.23350785,101760.0,101750.0,0.69657883]
[1738162215506,0.33057329,101780.0,101770.0,0.19659]
[1738162215704,0.66629412,101780.0,101770.0,1.5]
[1738162215895,0.196618,101760.0,101740.0,0.78874962]
[1738162216091,0.33577883,101750.0,101740.0,0.5589142]
[1738162216395,0.33577883,101750.0,101740.0,0.0014742]
[1738162216396,0.69657883,101750.0,101740.0,0.0014742]
[1738162217001,0.196648,101740.0,101730.0,0.19680459]
[1738162217301,0.3608,101750.0,101730.0,0.19680459]
[1738162217499,0.3608,101750.0,101740.0,0.196648]
[1738162217899,0.49994983,101750.0,101730.0,0.19681059]
[1738162218098,0.69659783,101740.0,101730.0,0.00014759]
[1738162219104,0.13914983,101720.0,101700.0,0.1127]
[1738162219299,0.69665583,101710.0,101700.0,0.1127]
[1738162219494,0.557506,101710.0,101700.0,0.40394588]
[1738162219696,0.3608,101710.0,101700.0,0.60067088]
[1738162220000,0.557506,101710.0,101700.0,0.40394588]
[1738162220200,0.557506,101710.0,101700.0,0.60067088]
[1738162220508,0.557506,101710.0,101700.0,0.29124588]
[1738162220701,0.67783759,101720.0,101700.0,0.48795788]
[1738162220902,0.00014759,101720.0,101710.0,0.196706]
[1738162221306,0.196634,101750.0,101740.0,0.196648]
[1738162221602,1.26677801,101760.0,101740.0,0.196648]
[1738162221803,0.196629,101750.0,101740.0,0.196648]
[1738162221997,0.196629,101750.0,101730.0,0.3608]
[1738162221998,0.196629,101750.0,101730.0,0.557461]
[1738162222201,1.26673701,101760.0,101740.0,0.196648]
[1738162222397,0.3608,101750.0,101740.0,0.33579783]
[1738162222598,0.00014759,101750.0,101740.0,0.33579783]
[1738162223712,0.00014759,101750.0,101740.0,0.69659783]
[1738162224203,0.55957659,101750.0,101740.0,1.5]
[1738162225205,0.55957659,101750.0,101730.0,0.19680759]
[1738162225607,0.36294759,101750.0,101740.0,0.196648]
[1738162225821,0.00214759,101750.0,101740.0,0.77205005]
[1738162226005,0.00214759,101750.0,101740.0,0.88425005]
[1738162226205,0.00214759,101750.0,101740.0,0.52345005]
[1738162226410,0.00214759,101750.0,101740.0,0.88425005]
[1738162226606,0.00014759,101750.0,101740.0,0.88425005]
[1738162226801,0.00214759,101750.0,101740.0,0.88425005]
[1738162227202,0.19877659,101750.0,101740.0,0.308848]
[1738162228009,0.19977659,101750.0,101740.0,0.1122]
[1738162228305,0.196648,101740.0,101730.0,0.19681159]
[1738162229408,0.557448,101740.0,101730.0,0.19681159]
[1738162229603,0.196648,101740.0,101730.0,0.19781159]
[1738162230205,0.36194759,101750.0,101730.0,0.19781159]
[1738162230206,0.00114759,101750.0,101740.0,0.196648]
[1738162230514,0.00114759,101750.0,101740.0,0.77205005]
[1738162230709,0.19777659,101750.0,101740.0,0.196648]
[1738162230903,0.19777659,101750.0,101740.0,0.557448]
[1738162231106,0.19777659,101750.0,101730.0,0.36194759]
[1738162231107,0.196648,101740.0,101730.0,0.55861059]
[1738162231310,0.19778059,101750.0,101740.0,0.196648]
[1738162231809,0.00114759,101750.0,101740.0,0.557448]
[1738162232014,0.00114759,101750.0,101740.0,2.27205005]
[1738162232605,0.00114759,101750.0,101740.0,2.057448]
[1738162232805,0.19777659,101750.0,101740.0,2.057448]
[1738162233008,0.55857659,101750.0,101740.0,1.5]
[1738162233412,0.19777659,101750.0,101740.0,1.696648]
[1738162233717,0.19777659,101750.0,101740.0,0.196648]
[1738162234111,0.19777659,101750.0,101740.0,1.696648]
[1738162234311,0.19977659,101750.0,101740.0,2.057448]
[1738162234516,0.00314759,101750.0,101740.0,2.27205005]
[1738162236713,0.782059,101790.0,101780.0,0.196571]
[1738162237217,0.669959,101790.0,101780.0,0.196571]
[1738162237414,0.669959,101790.0,101760.0,0.196607]
[1738162237415,0.68800205,101790.0,101760.0,0.196607]
[1738162237602,0.196609,101760.0,101750.0,0.48467415]
[1738162237808,0.196609,101760.0,101750.0,0.68129515]
[1738162238009,0.196609,101760.0,101750.0,2.18129515]
[1738162238312,0.557409,101760.0,101750.0,0.00147415]
[1738162238511,0.674509,101760.0,101750.0,0.00147415]
[1738162239114,0.680509,101760.0,101750.0,0.19810315]
[1738162239617,0.89511105,101760.0,101750.0,0.00147415]
[1738162239913,0.196629,101750.0,101740.0,0.00014759]
[1738162240217,0.557429,101750.0,101740.0,0.00014759]
[1738162241016,0.77203105,101750.0,101740.0,0.00014759]
[1738162241216,0.196648,101740.0,101730.0,0.23376289]
[1738162241516,0.69760205,101740.0,101720.0,0.29124588]
[1738162241821,0.557467,101730.0,101720.0,0.29124588]
[1738162242416,0.57540205,101730.0,101710.0,0.34964264]
[1738162242610,0.77208905,101720.0,101710.0,0.34964264]
[1738162243219,0.557487,101720.0,101710.0,0.34964264]
[1738162243408,0.77208905,101720.0,101710.0,0.00014759]
[1738162244119,0.196706,101710.0,101700.0,0.23417855]
[1738162244417,0.557506,101710.0,101700.0,0.23417855]
[1738162245020,0.69681947,101710.0,101700.0,0.23417855]
[1738162245820,0.69881947,101710.0,101700.0,0.23417855]
[1738162246418,0.559506,101710.0,101700.0,0.23417855]
[1738162246724,0.559506,101710.0,101690.0,0.19689059]
[1738162246725,0.196725,101700.0,101690.0,0.19689059]
[1738162247020,0.557525,101700.0,101690.0,0.00014759]
[1738162247224,0.69683847,101700.0,101690.0,0.00014759]
[1738162247926,0.196787,101670.0,101650.0,0.90711105]
[1738162248127,0.557587,101670.0,101650.0,2.40711105]
[1738162248328,0.69691647,101660.0,101650.0,1.84949505]
[1738162248628,0.557603,101660.0,101650.0,1.84949505]
[1738162248923,0.196803,101660.0,101650.0,1.84949505]
[1738162249126,0.557603,101660.0,101650.0,1.84949505]
[1738162249518,0.55773759,101670.0,101650.0,2.04631305]
[1738162249718,0.55773759,101670.0,101650.0,2.05031305]
[1738162249921,0.557603,101660.0,101650.0,1.85349505]
[1738162250113,0.69691647,101660.0,101650.0,1.85349505]
[1738162250624,0.69691647,101660.0,101650.0,1.504]
[1738162250814,0.69691647,101660.0,101650.0,1.505]
[1738162251014,0.557603,101660.0,101650.0,1.505]
[1738162251417,0.196803,101660.0,101650.0,1.504]
[1738162251613,0.197803,101660.0,101650.0,1.505]
[1738162251918,0.197803,101660.0,101650.0,1.501]
[1738162252118,0.197803,101660.0,101650.0,1.506]
[1738162252517,0.558603,101660.0,101650.0,1.506]
[1738162252824,0.558603,101660.0,101650.0,1.501]
[1738162253021,0.69791647,101660.0,101650.0,1.503]
[1738162254124,0.93191647,101660.0,101650.0,1.503]
[1738162254326,0.792603,101660.0,101650.0,1.503]
[1738162254513,0.197803,101660.0,101650.0,1.503]
[1738162254718,0.197803,101660.0,101650.0,0.199822]
[1738162255124,0.197803,101660.0,101650.0,1.697822]
[1738162255321,0.69891647,101660.0,101650.0,1.5]
[1738162255516,0.196822,101650.0,101640.0,0.00014759]
[1738162255722,0.69693547,101650.0,101640.0,0.00014759]
[1738162256122,0.69693547,101650.0,101640.0,1.50014759]
[1738162256320,0.69693547,101650.0,101640.0,0.00014759]
[1738162257325,0.92943547,101650.0,101640.0,0.00014759]
[1738162257722,0.92943547,101650.0,101640.0,0.00114759]
[1738162258225,0.92943547,101650.0,101640.0,0.00214759]
[1738162259227,0.92943547,101650.0,101640.0,0.00014759]
[1738162259422,0.93143547,101650.0,101640.0,0.00014759]
[1738162260528,0.196861,101630.0,101620.0,0.2321]
[1738162260925,0.196861,101630.0,101620.0,0.42898]
[1738162261325,0.69696047,101640.0,101620.0,0.42898]
[1738162261629,0.00014759,101640.0,101630.0,0.3608]
[1738162261932,0.00014759,101640.0,101630.0,0.69697447]
[1738162262328,0.82883347,101670.0,101630.0,0.50011347]
[1738162262329,0.70603347,101670.0,101630.0,0.50011347]
[1738162262628,0.196789,101670.0,101660.0,0.196803]
[1738162262925,0.00052001,101680.0,101660.0,0.50011347]
[1738162263123,0.08760536,101690.0,101680.0,0.196764]
[1738162263334,0.08760536,101690.0,101680.0,0.69687747]
[1738162263524,0.08760536,101690.0,101680.0,0.678464]
[1738162263525,0.14631353,101690.0,101680.0,0.678464]
[1738162263728,0.482372,101690.0,101680.0,0.317664]
[1738162263922,0.196764,101680.0,101670.0,0.00014759]
[1738162264127,0.69687747,101680.0,101670.0,0.00014759]
[1738162264728,0.69687747,101680.0,101640.0,0.3608]
[1738162264729,0.63942694,101680.0,101640.0,0.3608]
[1738162264928,0.69692947,101660.0,101640.0,0.3608]
[1738162265131,0.69692947,101660.0,101650.0,0.196822]
[1738162266133,0.196841,101640.0,101630.0,0.01553]
[1738162266332,0.69695447,101640.0,101630.0,0.01553]
[1738162266539,0.557641,101640.0,101630.0,0.212391]
[1738162266932,0.69695447,101640.0,101630.0,0.01553]
[1738162267132,0.557641,101640.0,101630.0,0.212391]
[1738162267533,0.36094759,101650.0,101630.0,0.212391]
[1738162267739,0.196841,101640.0,101630.0,0.212391]
[1738162268625,0.197841,101640.0,101630.0,0.213391]
[1738162268824,0.197841,101640.0,101630.0,0.215391]
[1738162269537,0.001,101640.0,101630.0,0.576191]
[1738162269739,0.197841,101640.0,101630.0,0.576191]
[1738162270332,0.001,101640.0,101630.0,0.57635817]
[1738162270531,0.001,101640.0,101630.0,0.83587164]
[1738162270729,0.197841,101640.0,101630.0,0.69655817]
[1738162271638,0.69795447,101640.0,101630.0,0.01869717]
[1738162272141,0.558641,101640.0,101630.0,0.01869717]
[1738162272338,0.69795447,101640.0,101630.0,0.01869717]
[1738162272732,0.558641,101640.0,101630.0,0.01869717]
[1738162273332,0.69795447,101640.0,101630.0,0.01869717]
[1738162273849,0.73801347,101640.0,101610.0,0.03932618]
[1738162274136,0.69699347,101620.0,101610.0,0.03785032]
[1738162274541,0.55768,101620.0,101610.0,0.03785032]
[1738162274936,0.55780959,101630.0,101610.0,0.23475032]
[1738162275333,0.55780959,101630.0,101610.0,0.23575032]
[1738162275534,0.001,101620.0,101610.0,0.59755032]
[1738162275735,0.001,101620.0,101610.0,0.85456379]
[1738162275934,0.001,101620.0,101610.0,0.85356379]
[1738162276247,0.00014759,101630.0,101620.0,0.19688]
[1738162276739,0.71967353,101650.0,101620.0,1.16822792]
[1738162276740,0.14631353,101650.0,101620.0,1.16822792]
[1738162276939,0.17486686,101660.0,101650.0,0.196822]
[1738162277142,0.17486686,101660.0,101650.0,0.69693547]
[1738162277543,0.67498033,101660.0,101650.0,1.696822]
[1738162277842,0.67498033,101660.0,101640.0,0.00014759]
[1738162278042,0.67498033,101660.0,101650.0,0.196822]
[1738162278043,0.17486686,101660.0,101650.0,0.196822]
[1738162278247,0.17486686,101660.0,101650.0,0.69693547]
[1738162278542,0.17486686,101660.0,101650.0,0.33613547]
[1738162278736,0.17486686,101660.0,101650.0,0.557622]
[1738162278936,0.17486686,101660.0,101650.0,0.33613547]
[1738162279143,0.17686686,101660.0,101650.0,0.81993547]
[1738162279742,0.00014759,101670.0,101660.0,0.196803]
[1738162279944,0.00014759,101670.0,101660.0,0.81161647]
[1738162280135,0.00014759,101670.0,101660.0,0.672303]
[1738162280446,0.00014759,101670.0,101660.0,0.311503]
[1738162281545,0.00514759,101670.0,101660.0,0.672303]
[1738162281744,0.00514759,101670.0,101660.0,0.81161647]
[1738162282044,0.17583314,101700.0,101690.0,0.196745]
[1738162282234,0.19816526,101720.0,101710.0,0.196706]
[1738162282235,0.00147526,101720.0,101710.0,0.196706]
[1738162282443,0.1237,101750.0,101710.0,0.86091347]
[1738162282639,0.36227468,101760.0,101740.0,0.3608]
[1738162282838,0.36227468,101760.0,101740.0,0.69675647]
[1738162283044,0.55888768,101760.0,101750.0,0.13931347]
[1738162283242,0.00162227,101760.0,101750.0,0.33594247]
[1738162283448,0.00162227,101760.0,101750.0,0.69674247]
[1738162283941,0.19823127,101760.0,101740.0,0.69690706]
[1738162284146,0.20623127,101760.0,101740.0,0.69690706]
[1738162284340,0.196629,101750.0,101740.0,0.55759359]
[1738162284546,0.196629,101750.0,101740.0,2.05759359]
[1738162284736,0.557429,101750.0,101740.0,1.50014759]
[1738162285048,0.557429,101750.0,101740.0,0.00014759]
[1738162285246,0.69674247,101750.0,101740.0,0.00014759]
[1738162285751,0.557429,101750.0,101740.0,0.00014759]
[1738162285945,0.196629,101750.0,101740.0,0.33610906]
[1738162286147,0.57003527,101760.0,101740.0,0.33610906]
[1738162286347,0.3608,101750.0,101740.0,0.33610906]
[1738162286553,0.3628,101750.0,101740.0,0.33610906]
[1738162286748,0.559429,101750.0,101740.0,0.13946106]
[1738162287053,0.559429,101750.0,101740.0,0.00114759]
[1738162287656,0.559429,101750.0,101740.0,0.00014759]
[1738162287953,0.564429,101750.0,101740.0,0.00114759]
[1738162288155,0.70174247,101750.0,101740.0,0.00114759]
[1738162288347,0.562429,101750.0,101740.0,0.00114759]
[1738162288549,0.562429,101750.0,101740.0,0.14046106]
[1738162289145,0.3658,101750.0,101740.0,0.33710906]
[1738162289853,0.3678,101750.0,101740.0,0.33710906]
[1738162290044,0.007,101750.0,101740.0,0.33710906]
[1738162290542,0.007,101750.0,101740.0,0.00114759]
[1738162290543,0.203629,101750.0,101740.0,0.00114759]
[1738162291650,0.007,101750.0,101740.0,0.33710906]
[1738162292156,0.007,101750.0,101740.0,0.69790906]
[1738162292349,0.007,101750.0,101740.0,0.93600906]
[1738162294548,0.007,101750.0,101740.0,2.43600906]
[1738162294856,0.007,101750.0,101740.0,0.93600906]
[1738162295254,0.007,101750.0,101740.0,2.43600906]
[1738162295449,0.00162227,101760.0,101750.0,0.196629]
[1738162295651,0.00162227,101760.0,101750.0,0.69674247]
[1738162295951,0.00162227,101760.0,101750.0,0.557429]
[1738162296454,0.19823127,101760.0,101750.0,0.557429]
[1738162296647,0.20123127,101760.0,101750.0,0.69674247]
[1738162297046,0.00462227,101760.0,101750.0,0.69674247]
[1738162297246,0.01162227,101760.0,101750.0,0.69774247]
[1738162297458,0.20823127,101760.0,101750.0,0.558429]
[1738162297854,0.01162227,101760.0,101750.0,0.69774247]
[1738162298352,0.3608,101790.0,101750.0,0.50111347]
[1738162298556,0.557362,101790.0,101780.0,0.196571]
[1738162298856,0.196562,101790.0,101780.0,0.196571]
[1738162299051,0.5833,101800.0,101760.0,0.50011347]
[1738162299052,0.72261347,101800.0,101760.0,0.50011347]
[1738162299253,0.196585,101780.0,101770.0,0.196584]
[1738162299562,0.69669847,101780.0,101770.0,1.5]
[1738162299759,0.50011347,101780.0,101750.0,0.00247422]
[1738162299955,0.33592247,101760.0,101750.0,0.00247422]
[1738162300149,0.196609,101760.0,101750.0,0.19910322]
[1738162300455,0.196609,101760.0,101750.0,0.00247422]
[1738162300456,0.557409,101760.0,101750.0,0.00247422]
[1738162300860,0.69672247,101760.0,101750.0,0.00147422]
[1738162301253,0.196629,101750.0,101740.0,0.00014759]
[1738162301449,0.69674247,101750.0,101740.0,0.00014759]
[1738162301851,0.557429,101750.0,101740.0,0.00014759]
[1738162302056,0.664736,101760.0,101740.0,0.13946106]
[1738162302251,0.46812,101760.0,101740.0,0.00014759]
[1738162302451,0.557429,101750.0,101740.0,0.00014759]
[1738162302746,0.69674247,101750.0,101740.0,0.00014759]
[1738162302946,0.92391347,101750.0,101720.0,0.00147466]
[1738162303153,0.69678047,101730.0,101720.0,0.00147466]
[1738162303456,0.557467,101730.0,101720.0,0.00147466]
[1738162303862,0.86091347,101730.0,101700.0,0.196721]
[1738162304066,0.557497,101720.0,101710.0,0.196706]
[1738162304360,0.19671,101710.0,101700.0,0.19686959]
[1738162304664,0.19671,101710.0,101700.0,1.69686959]
[1738162304665,0.55751,101710.0,101700.0,1.69686959]
[1738162304959,0.55751,101710.0,101700.0,1.83618306]
[1738162305163,0.557496,101720.0,101700.0,1.83618306]
[1738162305348,0.558496,101720.0,101710.0,0.006]
[1738162305551,0.69780947,101720.0,101710.0,0.008]
[1738162306051,0.558496,101720.0,101710.0,0.008]
[1738162306250,0.558496,101720.0,101710.0,0.006]
[1738162306457,0.197696,101720.0,101710.0,0.202706]
[1738162306752,0.197696,101720.0,101710.0,0.006]
[1738162306957,0.558496,101720.0,101710.0,0.006]
[1738162307154,0.558496,101720.0,101700.0,1.70586359]
[1738162307155,0.3618,101720.0,101700.0,1.70586359]
[1738162307355,0.197696,101720.0,101700.0,1.70586359]
[1738162307661,0.557496,101720.0,101700.0,1.69986359]
[1738162307862,0.558496,101720.0,101710.0,0.202706]
[1738162308053,0.197696,101720.0,101710.0,0.204706]
[1738162308256,0.196696,101720.0,101710.0,0.198706]
[1738162308455,0.197696,101720.0,101710.0,0.198706]
[1738162308759,0.558496,101720.0,101710.0,0.002]
[1738162308950,0.1967,101720.0,101700.0,1.69886559]
[1738162309155,0.1977,101720.0,101710.0,0.202706]
[1738162309454,0.001,101720.0,101710.0,0.70281947]
[1738162309851,0.001,101720.0,101710.0,0.94291947]
[1738162310167,0.197687,101720.0,101710.0,1.820806]
[1738162310466,0.001,101720.0,101710.0,2.32091947]
[1738162310965,0.001,101720.0,101710.0,2.32291947]
[1738162311159,0.00014759,101730.0,101720.0,0.196687]
[1738162311360,0.00014759,101730.0,101720.0,0.81450047]
[1738162312256,0.19681459,101730.0,101720.0,0.196687]
[1738162312461,0.55761459,101730.0,101720.0,0.196687]
[1738162312660,0.55761459,101730.0,101720.0,0.199687]
[1738162312971,0.55761459,101730.0,101720.0,0.200687]
[1738162312972,0.69692806,101730.0,101720.0,0.200687]
[1738162313168,0.55761459,101730.0,101720.0,0.200687]
[1738162313369,0.55761459,101730.0,101720.0,0.004]
[1738162313570,0.19681459,101730.0,101720.0,0.200687]
[1738162313770,0.19681459,101730.0,101720.0,0.34000047]
[1738162314070,0.00014759,101730.0,101720.0,0.34000047]
[1738162314467,0.00014759,101730.0,101720.0,0.70080047]
[1738162315261,0.00014759,101730.0,101720.0,0.200687]
[1738162315470,0.19681459,101730.0,101720.0,0.200687]
[1738162315766,0.19681459,101730.0,101720.0,0.561487]
[1738162315963,0.19681459,101730.0,101720.0,0.200687]
[1738162316158,0.55761459,101730.0,101720.0,0.200687]
[1738162316362,0.19681459,101730.0,101720.0,0.200687]
[1738162316769,0.55761459,101730.0,101720.0,0.200687]
[1738162317070,0.19681459,101730.0,101720.0,0.200687]
[1738162317272,0.00014759,101730.0,101720.0,0.34000047]
[1738162317474,0.00014759,101730.0,101720.0,0.70080047]
[1738162318069,0.7041773,101760.0,101750.0,0.196629]
[1738162318271,0.3433653,101760.0,101750.0,0.196629]
[1738162318768,0.3433653,101760.0,101750.0,1.696629]
[1738162318972,0.1467563,101760.0,101750.0,1.83594247]
[1738162319269,0.3513653,101760.0,101750.0,1.697629]
[1738162320268,0.7121653,101760.0,101750.0,1.697629]
[1738162320574,0.56688364,101760.0,101750.0,1.697629]
[1738162321276,0.70619711,101760.0,101750.0,0.001]
[1738162321474,0.94105458,101760.0,101730.0,0.52554509]
[1738162321670,0.69676147,101740.0,101730.0,0.52554509]
[1738162322069,0.557448,101740.0,101730.0,0.52554509]
[1738162322470,0.557448,101740.0,101730.0,0.72221209]
[1738162322671,0.77206258,101740.0,101730.0,0.52554509]
[1738162322873,0.57541458,101740.0,101720.0,0.3529918]
[1738162323177,0.77208158,101730.0,101720.0,0.3521918]
[1738162323970,0.77208158,101730.0,101720.0,0.00014759]
[1738162324681,0.77208158,101730.0,101700.0,0.23468797]
[1738162324682,0.196706,101710.0,101700.0,0.23468797]
[1738162324870,0.918306,101710.0,101700.0,1.73468797]
[1738162326078,0.918306,101710.0,101700.0,0.23468797]
[1738162326374,1.13292058,101710.0,101700.0,0.23768797]
[1738162327476,1.13292058,101710.0,101700.0,0.13082809]
[1738162327675,1.25432058,101710.0,101700.0,0.13082809]
[1738162328074,1.039706,101710.0,101700.0,0.13082809]
[1738162328673,0.918306,101710.0,101690.0,0.196741]
[1738162328981,0.557525,101700.0,101690.0,0.196741]
[1738162329873,0.3608,101700.0,101690.0,0.196741]
[1738162330284,0.201712,101710.0,101700.0,0.196725]
[1738162330575,0.005,101710.0,101700.0,0.196725]
[1738162330975,0.005,101710.0,101700.0,1.696725]
[1738162331379,0.003,101710.0,101700.0,2.057525]
[1738162331570,0.00014759,101720.0,101710.0,0.196706]
[1738162331771,0.00014759,101720.0,101710.0,0.77212058]
[1738162331978,0.14675725,101730.0,101720.0,0.41130158]
[1738162332186,0.17356206,101740.0,101720.0,0.81771458]
[1738162332380,0.17356206,101740.0,101730.0,0.77208158]
[1738162332571,0.36227464,101760.0,101750.0,0.196629]
[1738162332776,0.00147464,101760.0,101750.0,0.557429]
[1738162333979,0.00147464,101760.0,101750.0,0.77204358]
[1738162334177,0.84974958,101800.0,101790.0,0.196551]
[1738162334178,0.657339,101800.0,101790.0,0.196551]
[1738162334384,0.657339,101800.0,101790.0,1.696551]
[1738162335077,0.296539,101800.0,101790.0,1.696551]
[1738162335276,0.1,101800.0,101790.0,1.696551]
[1738162336072,0.1,101800.0,101790.0,2.057351]
[1738162336278,0.1,101800.0,101790.0,2.27296558]
[1738162336279,0.106,101800.0,101790.0,2.27296558]
[1738162337390,0.17530925,101830.0,101820.0,0.196493]
[1738162337780,0.17530925,101830.0,101820.0,0.557293]
[1738162337980,0.17530925,101830.0,101820.0,2.057293]
[1738162338179,0.53610925,101830.0,101810.0,0.196508]
[1738162338386,0.53610925,101830.0,101790.0,0.36327346]
[1738162338387,0.3608,101820.0,101790.0,0.36327346]
[1738162338680,0.560332,101800.0,101790.0,0.00347346]
[1738162338881,0.560332,101800.0,101790.0,0.00362105]
[1738162339284,0.557332,101800.0,101790.0,0.00262105]
[1738162339485,0.55746459,101810.0,101790.0,0.57703563]
[1738162339794,0.00014759,101810.0,101800.0,0.77194658]
[1738162340291,0.17730925,101830.0,101820.0,0.196493]
[1738162340688,0.73458325,101830.0,101810.0,0.196508]
[1738162340991,0.557293,101820.0,101810.0,0.196508]
[1738162342784,0.00214759,101830.0,101820.0,0.196493]
[1738162342989,0.00214759,101830.0,101820.0,0.77190758]
[1738162343489,0.19862159,101830.0,101820.0,0.196493]
[1738162343692,0.36294759,101830.0,101810.0,0.3565]
[1738162343895,0.196493,101820.0,101810.0,0.553012]
[1738162344092,0.196493,101820.0,101810.0,0.196512]
[1738162344284,0.196493,101820.0,101810.0,0.557312]
[1738162344489,0.197493,101820.0,101810.0,0.557312]
[1738162344990,0.001,101820.0,101810.0,0.77192658]
[1738162345290,0.19662859,101830.0,101810.0,0.77192658]
[1738162345291,0.19862859,101830.0,101810.0,0.77192658]
[1738162345494,0.3608,101820.0,101800.0,0.55747259]
[1738162345690,0.557298,101820.0,101800.0,0.55747259]
[1738162345909,0.557298,101820.0,101810.0,0.196513]
[1738162346202,0.557298,101820.0,101800.0,0.55747359]
[1738162346203,0.196513,101810.0,101800.0,0.55747359]
[1738162346999,0.557313,101810.0,101800.0,0.19667359]
[1738162347202,0.55753182,101810.0,101800.0,0.00014759]
[1738162347606,0.55753182,101810.0,101800.0,0.00114759]
[1738162348006,0.36101882,101810.0,101800.0,0.00114759]
[1738162348200,0.36101882,101810.0,101800.0,0.41229417]
[1738162348400,0.00021882,101810.0,101800.0,0.77309417]
[1738162348801,0.19673182,101810.0,101800.0,0.19767959]
[1738162349003,0.55753182,101810.0,101800.0,0.19767959]
[1738162349705,0.55753182,101810.0,101800.0,0.00114759]
[1738162349906,0.7721464,101810.0,101800.0,0.00114759]
[1738162350702,0.7741464,101810.0,101800.0,0.00014759]
[1738162350905,0.8776334,101810.0,101760.0,0.44570847]
[1738162351108,0.19659,101770.0,101760.0,0.22182303]
[1738162351303,0.3608,101780.0,101770.0,0.19659]
[1738162351612,0.557355,101790.0,101770.0,0.19659]
[1738162351808,0.557355,101790.0,101780.0,0.196571]
[1738162351998,0.55750259,101790.0,101780.0,0.196571]
[1738162352396,0.55750259,101790.0,101780.0,1.696571]
[1738162352397,0.19670259,101790.0,101780.0,1.696571]
[1738162352601,0.19670259,101790.0,101780.0,2.19643916]
[1738162352602,0.00014759,101790.0,101780.0,2.19643916]
[1738162352999,0.00014759,101790.0,101780.0,2.44763916]
[1738162353199,0.00014759,101790.0,101780.0,2.57803916]
[1738162353405,0.00014759,101790.0,101780.0,1.697571]
[1738162353600,0.55749859,101790.0,101780.0,1.501]
[1738162354009,0.19669859,101790.0,101780.0,1.703571]
[1738162354810,0.00014759,101790.0,101780.0,1.703571]
[1738162355006,0.00014759,101790.0,101780.0,2.20343916]
[1738162355212,0.55900896,101810.0,101790.0,0.196539]
[1738162355511,0.196532,101800.0,101790.0,0.196539]
[1738162355904,0.196532,101800.0,101790.0,1.696539]
[1738162356613,0.196532,101800.0,101790.0,1.697539]
[1738162357012,0.36264055,101810.0,101790.0,2.00086816]
[1738162357317,0.55915355,101810.0,101800.0,0.196532]
[1738162357515,0.55767941,101810.0,101800.0,0.196532]
[1738162357817,0.19687941,101810.0,101800.0,0.196532]
[1738162358120,0.19687941,101810.0,101800.0,0.33560016]
[1738162358508,0.19687941,101810.0,101800.0,0.196532]
[1738162359513,0.00036641,101810.0,101800.0,0.33660016]
[1738162359713,0.00036641,101810.0,101800.0,0.69740016]
[1738162360018,0.19687941,101810.0,101800.0,0.69740016]
[1738162360716,0.00036641,101810.0,101800.0,0.69740016]
[1738162360903,0.19687941,101810.0,101800.0,0.33660016]
[1738162361311,0.19687941,101810.0,101800.0,1.83660016]
[1738162361810,0.55767941,101810.0,101800.0,1.697532]
[1738162362011,0.55767941,101810.0,101800.0,0.197532]
[1738162362508,0.55767941,101810.0,101800.0,1.697532]
[1738162363011,0.55767941,101810.0,101800.0,0.001]
[1738162363319,0.19687941,101810.0,101800.0,0.33660016]
[1738162363519,0.19687941,101810.0,101800.0,1.83660016]
[1738162363520,0.00036641,101810.0,101800.0,1.83660016]
[1738162363713,0.19687941,101810.0,101800.0,1.697532]
[1738162364018,0.55867941,101810.0,101800.0,1.696532]
[1738162364316,0.56067941,101810.0,101800.0,1.696532]
[1738162364515,0.00336641,101810.0,101800.0,1.83560016]
[1738162364914,0.00336641,101810.0,101800.0,2.19640016]
[1738162365315,0.19987941,101810.0,101800.0,1.83560016]
[1738162365512,0.00336641,101810.0,101800.0,2.19640016]
[1738162365818,0.00036641,101810.0,101800.0,2.19740016]
[1738162366419,0.19687941,101810.0,101800.0,1.83660016]
[1738162366621,0.00036641,101810.0,101800.0,1.83660016]
[1738162366815,0.00036641,101810.0,101800.0,2.19740016]
[1738162367616,4.1e-07,101810.0,101800.0,2.37945853]
[1738162367815,0.26408735,101840.0,101830.0,0.196474]
[1738162367816,0.26261375,101840.0,101830.0,0.196474]
[1738162368009,0.17530925,101850.0,101840.0,0.196455]
[1738162368511,0.37174525,101850.0,101840.0,1.696455]
[1738162368914,0.53610925,101850.0,101840.0,1.696455]
[1738162369215,0.53610925,101850.0,101840.0,1.83552316]
[1738162369615,0.53910925,101850.0,101840.0,1.83652316]
[1738162369914,0.73554525,101850.0,101840.0,1.697455]
[1738162370323,0.73754525,101850.0,101840.0,0.197455]
[1738162370614,0.73754525,101850.0,101840.0,0.69732316]
[1738162370615,0.18030925,101850.0,101840.0,0.69732316]
[1738162370818,0.18030925,101850.0,101840.0,2.19732316]
[1738162371210,0.18030925,101850.0,101840.0,2.19632316]
[1738162371211,0.17730925,101850.0,101840.0,2.19632316]
[1738162371406,0.37574525,101850.0,101840.0,1.696455]
[1738162371607,0.200436,101850.0,101840.0,1.696455]
[1738162372022,0.200436,101850.0,101840.0,1.83552316]
[1738162372215,0.200436,101850.0,101840.0,2.057255]
[1738162372420,0.200436,101850.0,101840.0,1.696455]
[1738162372812,1e-06,101850.0,101840.0,2.33539132]
[1738162373013,1e-06,101850.0,101840.0,2.46089132]
[1738162373213,1e-06,101850.0,101840.0,2.71699132]
[1738162373917,1e-06,101850.0,101840.0,2.57792316]
[1738162374324,1e-06,101850.0,101840.0,2.71699132]
[1738162375417,1e-06,101850.0,101840.0,2.75997048]
[1738162375724,1e-06,101850.0,101840.0,2.75996478]
[1738162375919,1e-06,101850.0,101840.0,1.21699132]
[1738162376313,1e-06,101850.0,101840.0,2.71699132]
[1738162376814,0.00014759,101860.0,101850.0,0.196436]
[1738162377020,0.00014759,101860.0,101850.0,0.69630416]
[1738162378221,0.00214759,101860.0,101850.0,0.69630416]
[1738162380428,0.68731383,101900.0,101850.0,0.49986816]
[1738162380629,0.685841,101900.0,101890.0,0.196358]
[1738162380821,0.1,101900.0,101890.0,0.69622616]
[1738162381627,9.651e-05,101910.0,101890.0,0.49986816]
[1738162381827,0.17530925,101930.0,101920.0,0.196301]
[1738162382127,0.17530925,101930.0,101920.0,1.19603732]
[1738162382628,0.17530925,101930.0,101920.0,0.83523732]